lending/lending_fUSD_20250425
["ID","MTS","AMOUNT","RATE_DAILY","PERIOD"]
[358931063,1745553058561,-175.498221,0.00046575,14]
[358931064,1745553058570,-175.498221,0.00046575,14]
[358931065,1745553058581,-175.498221,0.00046575,14]
[358931066,1745553058592,-175.498221,0.00046575,14]
[358931067,1745553058602,-175.498221,0.00046575,14]
[358931068,1745553058612,-175.498221,0.00046575,14]
[358931069,1745553058622,-175.498221,0.00046575,14]
[358931070,1745553058632,-175.498221,0.00046575,14]
[358931071,1745553058641,-175.498221,0.00046575,14]
[358931072,1745553058651,-175.498221,0.00046575,14]
[358931073,1745553058660,-175.498221,0.00046575,14]
[358931074,1745553058670,-175.498221,0.00046575,14]
[358931075,1745553058680,-175.498221,0.00046575,14]
[358931076,1745553058689,-175.498222,0.00046575,14]
[358931077,1745553058699,-150.47,0.00046575,2]
[358931078,1745553058708,-515.41919028,0.00046575,5]
[358931079,1745553058718,-2454.24,0.000466,14]
[358931080,1745553058728,-5800.0,0.00046602,14]
[358931081,1745553058737,-2237.1179662,0.00046602,14]
[358931082,1745553058747,-5800.0,0.00046615,14]
[358931083,1745553058757,-150.0,0.00046621,3]
[358931084,1745553058767,-150.0,0.00046695,3]
[358931085,1745553058777,-1071.0,0.00046731,30]
[358931086,1745553058787,-150.0,0.00046768,3]
[358931087,1745553058797,-181.07490895,0.000468,120]
[358931088,1745553058806,-150.0,0.00046842,3]
[358931089,1745553058816,-1000.0,0.00046849,120]
[358931090,1745553058826,-1000.0,0.00046849,120]
[358931091,1745553058836,-1000.0,0.00046849,120]
[358931092,1745553058845,-1000.0,0.00046849,120]
[358931093,1745553058855,-1000.0,0.00046849,120]
[358931094,1745553058864,-1000.0,0.00046849,120]
[358931095,1745553058873,-1000.0,0.00046849,120]
[358931096,1745553058885,-1000.0,0.00046849,120]
[358931097,1745553058895,-1000.0,0.00046849,120]
[358931098,1745553058905,-1000.0,0.00046849,120]
[358931099,1745553058915,-1000.0,0.00046849,120]
[358931100,1745553058925,-1000.0,0.00046849,120]
[358931101,1745553058935,-1000.0,0.00046849,120]
[358931102,1745553058944,-1000.0,0.00046849,120]
[358931103,1745553058954,-1000.0,0.00046849,120]
[358931104,1745553058964,-1000.0,0.00046849,120]
[358931105,1745553058974,-1000.0,0.00046849,120]
[358931106,1745553058983,-1000.0,0.00046849,120]
[358931107,1745553058993,-1000.0,0.00046849,120]
[358931108,1745553059002,-1000.0,0.00046849,120]
[358931109,1745553059011,-1000.0,0.00046849,120]
[358931110,1745553059021,-1000.0,0.00046849,120]
[358931111,1745553059031,-1000.0,0.00046849,120]
[358931112,1745553059042,-1000.0,0.00046849,120]
[358931113,1745553059051,-1000.0,0.00046849,120]
[358931114,1745553059061,-1000.0,0.00046849,120]
[358931115,1745553059071,-1000.0,0.00046849,120]
[358931116,1745553059081,-1000.0,0.00046849,120]
[358931117,1745553059091,-1000.0,0.00046849,120]
[358931118,1745553059101,-1000.0,0.00046849,120]
[358931119,1745553059122,-1000.0,0.00046849,120]
[358931120,1745553059133,-1000.0,0.00046849,120]
[358931121,1745553059143,-1000.0,0.00046849,120]
[358931122,1745553059153,-1000.0,0.00046849,120]
[358931123,1745553059163,-1000.0,0.00046849,120]
[358931124,1745553059173,-1000.0,0.00046849,120]
[358931125,1745553059183,-1000.0,0.00046849,120]
[358931126,1745553059194,-1000.0,0.00046849,120]
[358931127,1745553059206,-1000.0,0.00046849,120]
[358931128,1745553059217,-1000.0,0.00046849,120]
[358931129,1745553059227,-1000.0,0.00046849,120]
[358931130,1745553059237,-1000.0,0.00046849,120]
[358931131,1745553059248,-1000.0,0.00046849,120]
[358931132,1745553059258,-1000.0,0.00046849,120]
[358931133,1745553059268,-1000.0,0.00046849,120]
[358931134,1745553059280,-1000.0,0.00046849,120]
[358931135,1745553059291,-1000.0,0.00046849,120]
[358931136,1745553059302,-1000.0,0.00046849,120]
[358931137,1745553059312,-1000.0,0.00046849,120]
[358931138,1745553059323,-1544.09947088,0.00046849,120]
[358931139,1745553059333,-152.0,0.00046873,15]
[358931140,1745553059343,-167.51,0.000469,2]
[358931141,1745553059355,-21.62866815,0.000469,2]
[358931142,1745553060303,-609.90490541,0.000469,2]
[358931143,1745553121670,200.0,0.0003685,117]
[358931144,1745553121747,200.0,0.00033811,117]
[358931145,1745553121846,200.0,0.00034206,117]
[358931146,1745553241411,200.0,0.0003685,117]
[358931147,1745553241497,200.0,0.00033798,117]
[358931148,1745553241574,200.0,0.00035889,117]
[358931161,1745553361859,200.0,0.0003685,117]
[358931162,1745553361978,200.0,0.0003475,117]
[358931163,1745553362041,200.0,0.0003707,117]
[358931166,1745553481357,200.0,0.0003685,117]
[358931167,1745553481410,200.0,0.0003475,117]
[358931168,1745553481503,200.0,0.00036867,117]
[358931169,1745553602165,200.0,0.0003685,117]
[358931170,1745553602283,200.0,0.0003475,117]
[358931171,1745553602429,200.0,0.00036867,117]
[358931174,1745553721684,200.0,0.0003685,117]
[358931175,1745553795287,203.0,0.000378,60]
[358931223,1745554231921,-150.0,0.000335,2]
[358931224,1745554231930,-173.48,0.00036,7]
[358931225,1745554231940,-250.0,0.0003685,2]
[358931226,1745554231950,-274.16820623,0.00038356,2]
[358931227,1745554231960,-219.95,0.00038445,2]
[358931228,1745554231969,-152.0,0.00038987,3]
[358931229,1745554231979,-358.799999,0.00039,58]
[358931230,1745554231988,-200.0,0.0004,61]
[358931231,1745554231998,-150.47,0.00040059,2]
[358931232,1745554232008,-152.0,0.00040078,4]
[358931233,1745554232017,-87.98076796,0.0004012,7]
[358931234,1745554232029,-949.20923204,0.0004012,7]
[358931235,1745554232038,-157.64,0.00040129,30]
[358931236,1745554232048,-236.73092352,0.00040258,5]
[358931237,1745554232059,-663.26907648,0.00040258,5]
[358931238,1745554232068,-61.07438107,0.00040258,5]
[358931239,1745554232094,-243.92561893,0.00040258,5]
[358931240,1745554232104,-700.0,0.00040259,15]
[358931241,1745554232113,-700.0,0.00040259,15]
[358931242,1745554232122,-700.0,0.00040259,15]
[358931243,1745554232131,-700.0,0.00040259,15]
[358931244,1745554232141,-700.0,0.00040259,15]
[358931245,1745554232150,-419.4,0.0004029,30]
[358931246,1745554232159,-1000.0,0.00040326,2]
[358931247,1745554232168,-150.0,0.00040356,2]
[358931248,1745554232178,-166.59,0.00040532,2]
[358931249,1745554232188,-219.95,0.00040709,2]
[358931250,1745554232198,-226.2333,0.00040888,30]
[358931252,1745554232207,-200.55924731,0.000409,16]
[358931254,1745554232217,-200.0,0.00041,64]
[358931256,1745554232226,-1892.38180638,0.00041,120]
[358931257,1745554232235,-177.0,0.00041,14]
[358931259,1745554232245,-226.2333,0.00041088,30]
[358931261,1745554232253,-1000.0,0.00041095,120]
[358931263,1745554232262,-1000.0,0.00041095,120]
[358931264,1745554232271,-1000.0,0.00041095,120]
[358931266,1745554232281,-1000.0,0.00041095,120]
[358931268,1745554232290,-731.67752355,0.00041095,120]
[358931270,1745554232299,-400.01401109,0.00041095,4]
[358931273,1745554232312,-453.98598891,0.00041095,4]
[358931275,1745554232321,-152.0,0.00041168,5]
[358931277,1745554232330,-226.2333,0.00041288,30]
[358931279,1745554232339,-226.2333,0.00041488,30]
[358931281,1745554232349,-693.478,0.00041488,61]
[358931283,1745554232358,-200.55924713,0.00041519,16]
[358931285,1745554232367,-349.6588,0.00041663,2]
[358931287,1745554232377,-226.2333,0.00041688,30]
[358931289,1745554232386,-1640.631,0.0004169,2]
[358931291,1745554232395,-278.55850194,0.0004169,15]
[358931293,1745554232404,-409.79252299,0.00041698,2]
[358931296,1745554232417,-590.20747701,0.00041698,2]
[358931298,1745554232426,-263.79252299,0.00041718,2]
[358931301,1745554232446,-1137.57018653,0.00041718,2]
[358931303,1745554232455,-12500.0,0.00041719,7]
[358931305,1745554232464,-12500.0,0.00041728,7]
[358931307,1745554232474,-195.79226314,0.00041736,30]
[358931309,1745554232484,-12500.0,0.00041737,7]
[358931311,1745554232493,-12500.0,0.00041746,7]
[358931313,1745554232503,-12500.0,0.00041754,7]
[358931315,1745554232513,-500.0,0.00041755,7]
[358931317,1745554232522,-12500.0,0.00041763,7]
[358931319,1745554232532,-500.0,0.00041771,31]
[358931321,1745554232542,-487.17283682,0.00041771,31]
[358931323,1745554232551,-500.0,0.00041771,31]
[358931325,1745554232561,-500.0,0.00041771,31]
[358931327,1745554232570,-500.0,0.00041771,31]
[358931329,1745554232579,-500.0,0.00041771,31]
[358931331,1745554232588,-500.0,0.00041771,31]
[358931333,1745554232598,-500.0,0.00041771,31]
[358931335,1745554232607,-12500.0,0.00041772,7]
[358931337,1745554232619,-500.0,0.00041772,7]
[358931339,1745554232629,-500.0,0.00041773,10]
[358931341,1745554232638,-12500.0,0.00041781,7]
[358931343,1745554232648,-12500.0,0.0004179,7]
[358931345,1745554232658,-500.0,0.00041798,7]
[358931347,1745554232668,-12500.0,0.00041798,7]
[358931349,1745554232677,-12500.0,0.00041807,7]
[358931351,1745554232687,-11445.8532621,0.00041816,7]
[358931353,1745554232700,-1054.1467379,0.00041816,7]
[358931355,1745554232709,-1947.8532621,0.00041825,7]
[358931358,1745554232729,-1044.40688525,0.00041825,7]
[358931360,1745554232740,-417.12196834,0.00041825,7]
[358931363,1745554232755,-1219.17424482,0.00041825,7]
[358931813,1745554237899,-7871.44363949,0.00041825,7]
[358931814,1745554237908,-12500.0,0.00041834,7]
[358931815,1745554237919,-12500.0,0.00041842,7]
[358931816,1745554237929,-12500.0,0.00041851,7]
[358931817,1745554237939,-12500.0,0.0004186,7]
[358931818,1745554237948,-226.2333,0.00041888,30]
[358931819,1745554237957,-200.0,0.00042,67]
[358931820,1745554237966,-995.78,0.00042,53]
[358931821,1745554237985,-500.0,0.00042029,7]
[358931822,1745554238004,-500.0,0.00042046,7]
[358931823,1745554238017,-500.81475066,0.00042072,7]
[358931824,1745554238033,-226.2333,0.00042088,30]
[358931825,1745554238051,-200.55924713,0.00042138,17]
[358931826,1745554238068,-1068.316997,0.0004215,54]
[358931827,1745554238086,-152.0,0.00042258,6]
[358931828,1745554238101,-226.2333,0.00042288,30]
[358931829,1745554238112,-500.0,0.00042303,7]
[358931830,1745554238129,-500.0,0.0004232,7]
[358931831,1745554238144,-165.92264669,0.00042354,15]
[358931832,1745554238160,-12500.0,0.00042361,7]
[358931833,1745554238177,-12500.0,0.00042369,7]
[358931834,1745554238193,-12500.0,0.00042378,7]
[358931835,1745554238210,-12500.0,0.00042387,7]
[358931836,1745554238226,-12500.0,0.00042396,7]
[358931837,1745554238239,-12500.0,0.00042405,7]
[358931838,1745554238254,-12500.0,0.00042413,7]
[358931839,1745554238270,-12500.0,0.00042422,7]
[358931840,1745554238287,-12500.0,0.00042431,7]
[358931841,1745554238303,-12500.0,0.0004244,7]
[358931842,1745554238315,-12500.0,0.00042449,7]
[358931844,1745554238328,-947.1671,0.00042454,2]
[358931847,1745554238345,-12500.0,0.00042457,7]
[358931849,1745554238359,-1094.29161667,0.00042458,10]
[358931851,1745554238370,-520.63114085,0.00042461,10]
[358931853,1745554238384,-286.22062195,0.00042461,10]
[358931856,1745554238401,-1094.29161667,0.00042463,10]
[358931858,1745554238414,-286.22062195,0.00042464,10]
[358931860,1745554238426,-1000.0,0.00042466,14]
[358931864,1745554238448,-1000.0,0.00042466,14]
[358931866,1745554238460,-12500.0,0.00042466,7]
[358931868,1745554238474,-383.72447444,0.00042473,10]
[358931871,1745554238487,-500.0,0.00042473,10]
[358931873,1745554238500,-200.0,0.00042473,10]
[358931875,1745554238513,-12500.0,0.00042475,7]
[358931878,1745554238528,-520.63114085,0.00042475,10]
[358931880,1745554238541,-200.0,0.00042476,10]
[358931883,1745554238556,-580.29965361,0.00042477,10]
[358931885,1745554238570,-200.0,0.0004248,10]
[358931887,1745554238586,-211.31403505,0.00042481,10]
[358931890,1745554238600,-200.0,0.00042482,10]
[358931892,1745554238615,-12500.0,0.00042484,7]
[358931895,1745554238629,-200.0,0.00042484,10]
[358931897,1745554238643,-580.29965361,0.00042486,10]
[358931899,1745554238657,-226.2333,0.00042488,30]
[358931902,1745554238670,-285.84787661,0.0004249,10]
[358931904,1745554238685,-598.81453649,0.00042493,10]
[358931907,1745554238700,-12500.0,0.00042493,7]
[358931909,1745554238714,-1234.71361662,0.00042496,10]
[358931912,1745554238728,-580.29965361,0.00042497,10]
[358931914,1745554238742,-200.0,0.000425,10]
[358931916,1745554238756,-286.22062195,0.00042501,10]
[358931919,1745554238770,-12500.0,0.00042501,7]
[358931921,1745554238783,-200.0,0.00042504,10]
[358931924,1745554238797,-200.0,0.00042504,10]
[358931926,1745554238811,-855.3130867,0.00042506,10]
[358931928,1745554238825,-2225.87832711,0.00042506,10]
[358931930,1745554238839,-200.0,0.00042509,10]
[358931933,1745554238854,-12500.0,0.0004251,7]
[358931935,1745554238868,-1234.71361662,0.00042513,10]
[358931938,1745554238882,-242.40698123,0.00042516,10]
[358931940,1745554238897,-242.40698123,0.00042518,10]
[358931943,1745554238913,-242.40698123,0.00042519,10]
[358931945,1745554238929,-12500.0,0.00042519,7]
[358931947,1745554238943,-242.40698123,0.00042519,10]
[358931950,1745554238956,-200.0,0.00042521,10]
[358931952,1745554238971,-12500.0,0.00042528,7]
[358931955,1745554238985,-200.0,0.00042529,10]
[358931957,1745554238999,-2225.87832711,0.00042531,10]
[358931960,1745554239012,-200.0,0.00042532,10]
[358931962,1745554239026,-200.0,0.00042534,10]
[358931964,1745554239041,-12500.0,0.00042537,7]
[358931967,1745554239055,-200.0,0.00042544,10]
[358931969,1745554239069,-12500.0,0.00042545,7]
[358931972,1745554239083,-2225.87832711,0.00042546,10]
[358931974,1745554239098,-285.84787661,0.0004255,10]
[358931977,1745554239113,-242.40698123,0.00042553,10]
[358931979,1745554239127,-12500.0,0.00042554,7]
[358931981,1745554239142,-200.0,0.00042555,10]
[358931984,1745554239156,-286.22062195,0.0004256,10]
[358931986,1745554239170,-200.0,0.00042562,10]
[358931989,1745554239184,-12500.0,0.00042563,7]
[358931991,1745554239198,-286.22062195,0.00042566,10]
[358931994,1745554239211,-12500.0,0.00042572,7]
[358931996,1745554239225,-200.0,0.00042573,10]
[358931999,1745554239238,-200.0,0.00042574,10]
[358932001,1745554239252,-200.0,0.00042576,10]
[358932003,1745554239267,-2225.87832711,0.00042577,10]
[358932006,1745554239282,-500.0,0.00042577,7]
[358932009,1745554239301,-12500.0,0.00042581,7]
[358932011,1745554239316,-211.31403505,0.00042584,10]
[358932014,1745554239331,-598.81453649,0.00042584,10]
[358932016,1745554239344,-1094.29161667,0.00042584,10]
[358932018,1745554239358,-278.55850191,0.00042587,15]
[358932021,1745554239372,-200.0,0.00042588,10]
[358932023,1745554239387,-12500.0,0.00042589,7]
[358932026,1745554239404,-1234.71361662,0.0004259,10]
[358932028,1745554239418,-200.0,0.00042592,10]
[358932031,1745554239431,-211.31403505,0.00042593,10]
[358932033,1745554239446,-598.81453649,0.00042593,10]
[358932036,1745554239460,-598.81453649,0.00042594,10]
[358932038,1745554239473,-500.0,0.00042594,7]
[358932040,1745554239487,-200.0,0.00042598,10]
[358932043,1745554239502,-12500.0,0.00042598,7]
[358932045,1745554239517,-285.84787661,0.00042603,10]
[358932048,1745554239530,-12500.0,0.00042607,7]
[358932050,1745554239545,-200.0,0.0004261,10]
[358932052,1745554239559,-200.0,0.00042615,10]
[358932055,1745554239572,-12500.0,0.00042616,7]
[358932057,1745554239586,-1094.29161667,0.00042619,10]
[358932060,1745554239600,-286.22062195,0.0004262,10]
[358932062,1745554239615,-200.0,0.00042623,10]
[358932064,1745554239630,-12500.0,0.00042625,7]
[358932067,1745554239644,-200.0,0.00042626,10]
[358932071,1745554239672,-200.0,0.00042627,10]
[358932074,1745554239693,-2225.87832711,0.00042628,10]
[358932077,1745554239711,-200.0,0.00042629,10]
[358932079,1745554239729,-12500.0,0.00042633,7]
[358932082,1745554239745,-285.84787661,0.00042634,10]
[358932085,1745554239761,-200.0,0.00042635,10]
[358932087,1745554239779,-855.3130867,0.00042637,10]
[358932090,1745554239795,-2225.87832711,0.0004264,10]
[358932093,1745554239812,-580.29965361,0.0004264,10]
[358932095,1745554239829,-200.0,0.00042641,10]
[358932098,1745554239845,-520.63114085,0.00042642,10]
[358932101,1745554239861,-12500.0,0.00042642,7]
[358932103,1745554239878,-211.31403505,0.00042646,10]
[358932106,1745554239893,-1094.29161667,0.00042648,10]
[358932108,1745554239907,-211.31403505,0.00042648,10]
[358932111,1745554239922,-520.63114085,0.0004265,10]
[358932113,1745554239937,-1234.71361662,0.00042651,10]
[358932116,1745554239951,-12500.0,0.00042651,7]
[358932117,1745554239964,-580.29965361,0.00042651,10]
[358932118,1745554239979,-200.0,0.00042653,10]
[358932119,1745554239993,-520.63114085,0.00042653,10]
[358932121,1745554240008,-200.0,0.00042658,10]
[358932122,1745554240022,-200.0,0.00042658,10]
[358932123,1745554240037,-200.0,0.00042658,10]
[358932124,1745554240061,-12500.0,0.0004266,7]
[358932125,1745554240078,-12500.0,0.00042669,7]
[358932126,1745554240097,-211.31403505,0.00042669,10]
[358932127,1745554240115,-598.81453649,0.00042673,10]
[358932129,1745554240130,-12500.0,0.00042677,7]
[358932132,1745554240147,-200.0,0.00042678,10]
[358932134,1745554240165,-200.0,0.00042684,10]
[358932136,1745554240181,-12500.0,0.00042686,7]
[358932137,1745554240197,-226.2333,0.00042688,30]
[358932138,1745554240214,-200.0,0.0004269,10]
[358932139,1745554240229,-1234.71361662,0.00042692,10]
[358932140,1745554240245,-12500.0,0.00042695,7]
[358932141,1745554240261,-200.0,0.00042695,10]
[358932142,1745554240276,-200.0,0.00042699,10]
[358932143,1745554240293,-855.3130867,0.00042699,10]
[358932144,1745554240307,-200.0,0.00042706,10]
[358932145,1745554240322,-200.0,0.00042709,10]
[358932146,1745554240337,-242.40698123,0.00042722,10]
[358932147,1745554240352,-200.0,0.00042724,10]
[358932148,1745554240365,-1094.29161667,0.00042724,10]
[358932149,1745554240381,-211.31403505,0.00042726,10]
[358932150,1745554240398,-520.63114085,0.00042726,10]
[358932151,1745554240413,-200.0,0.00042727,10]
[358932152,1745554240428,-580.29965361,0.00042729,10]
[358932153,1745554240442,-598.81453649,0.0004273,10]
[358932154,1745554240464,-1234.71361662,0.00042734,10]
[358932155,1745554240480,-855.3130867,0.00042735,10]
[358932156,1745554240496,-285.84787661,0.00042736,10]
[358932157,1745554240511,-200.0,0.0004274,10]
[358932159,1745554240525,-285.84787661,0.00042748,10]
[358932160,1745554240541,-855.3130867,0.00042748,10]
[358932161,1745554240556,-1094.29161667,0.00042755,10]
[358932162,1745554240569,-200.55924713,0.00042757,17]
[358932163,1745554240584,-242.40698123,0.00042761,10]
[358932164,1745554240598,-1234.71361662,0.00042764,10]
[358932165,1745554240613,-598.81453649,0.00042764,10]
[358932166,1745554240630,-285.84787661,0.00042764,10]
[358932167,1745554240646,-200.0,0.00042765,10]
[358932168,1745554240660,-200.0,0.00042765,10]
[358932169,1745554240677,-2225.87832711,0.00042767,10]
[358932170,1745554240691,-200.0,0.00042771,10]
[358932171,1745554240706,-200.0,0.00042775,10]
[358932172,1745554240720,-855.3130867,0.00042775,10]
[358932173,1745554240733,-286.22062195,0.0004278,10]
[358932175,1745554240747,-200.0,0.00042782,10]
[358932178,1745554240761,-200.0,0.00042789,10]
[358932180,1745554240775,-855.3130867,0.0004279,10]
[358932182,1745554240787,-520.63114085,0.00042791,10]
[358932184,1745554240798,-580.29965361,0.00042793,10]
[358932186,1745554240808,-200.0,0.00042795,10]
[358932188,1745554240818,-200.0,0.00042797,10]
[358932190,1745554240828,-150.0,0.0004283,7]
[358932192,1745554240838,-500.0,0.00042851,7]
[358932194,1745554240847,-226.2333,0.00042888,30]
[358932196,1745554240857,-219.95,0.00042973,2]
[358932197,1745554240872,-2000.0,0.00043,2]
[358932198,1745554240881,-200.0,0.00043,70]
[358932199,1745554241471,-277.0309,0.00043,2]
[358932200,1745554241518,-226.2333,0.00043088,30]
[358932201,1745554241553,-500.0,0.00043125,7]
[358932202,1745554241563,-177.0,0.00043151,90]
[358932203,1745554241573,-226.2333,0.00043288,30]
[358932204,1745554241585,-150.0,0.00043288,7]
[358932205,1745554241595,-152.0,0.00043348,7]
[358932206,1745554241605,-200.55924713,0.00043376,17]
[358932207,1745554241615,-500.0,0.00043399,7]
[358932208,1745554241627,-278.55850191,0.00043484,15]
[358932209,1745554241637,-226.2333,0.00043488,30]
[358932210,1745554241646,-150.0,0.00043562,7]
[358932211,1745554241656,-500.0,0.00043673,7]
[358932212,1745554241667,-226.2333,0.00043688,30]
[358932213,1745554241678,-212.66310552,0.00043836,7]
[358932214,1745554241688,-500.0,0.00043947,7]
[358932215,1745554241703,-200.55924713,0.00043995,18]
[358932216,1745554241713,-3075.0235035,0.00044,120]
[358932217,1745554241726,-200.0,0.00044,73]
[358932218,1745554241737,-226.2333,0.00044088,30]
[358932219,1745554241750,-165.92264669,0.00044138,15]
[358932220,1745554241760,-956.91,0.000442,2]
[358932221,1745554241769,-504.75,0.000442,2]
[358932222,1745554241779,-500.0,0.00044221,7]
[358932223,1745554241789,-1485.0,0.00044288,7]
[358932224,1745554241799,-226.2333,0.00044288,30]
[358932225,1745554241810,-278.55850191,0.00044381,15]
[358932226,1745554241820,-152.0,0.00044438,8]
[358932227,1745554241830,-226.2333,0.00044488,30]
[358932228,1745554241840,-500.0,0.00044495,7]
[358932229,1745554241856,-997.18557,0.00044554,4]
[358932230,1745554241866,-200.55924713,0.00044614,18]
[358932231,1745554241876,-226.2333,0.00044688,30]
[358932232,1745554241885,-500.0,0.00044769,7]
[358932233,1745554241895,-226.2333,0.00044888,30]
[358932234,1745554241905,-956.91,0.000449,2]
[358932235,1745554241915,-956.91,0.000449,2]
[358932236,1745554241925,-504.75,0.000449,2]
[358932237,1745554241935,-200.0,0.00045,76]
[358932238,1745554241944,-500.0,0.00045,120]
[358932239,1745554241954,-357.0,0.00045,90]
[358932240,1745554241964,-500.0,0.00045043,7]
[358932241,1745554241974,-226.2333,0.00045088,30]
[358932242,1745554241984,-294.99927595,0.00045203,30]
[358932243,1745554241993,-200.55924713,0.00045233,19]
[358932244,1745554242003,-219.95,0.00045237,2]
[358932245,1745554242013,-278.55850191,0.00045278,15]
[358932246,1745554242023,-226.2333,0.00045288,30]
[358932247,1745554242033,-500.0,0.00045317,7]
[358932248,1745554242043,-1000.0,0.00045367,2]
[358932249,1745554242053,-226.2333,0.00045488,30]
[358932250,1745554242064,-152.0,0.00045529,9]
[358932251,1745554242074,-500.0,0.00045591,7]
[358932252,1745554242083,-357.0,0.00045685,90]
[358932253,1745554242093,-226.2333,0.00045688,30]
[358932254,1745554242103,-2000.0,0.000458,2]
[358932255,1745554242112,-200.55924713,0.00045852,19]
[358932256,1745554242122,-500.0,0.00045865,7]
[358932257,1745554242131,-24098.1939772,0.00045878,3]
[358932258,1745554242141,-17437.4099769,0.00045878,3]
[358932259,1745554242151,-226.2333,0.00045888,30]
[358932260,1745554242160,-165.92264669,0.00045922,15]
[358932261,1745554242170,-150.0,0.00045948,30]
[358932262,1745554242181,-200.0,0.00045948,30]
[358932263,1745554242190,-200.0,0.00045948,30]
[358932264,1745554242200,-200.0,0.00045948,30]
[358932265,1745554242209,-200.0,0.00045948,30]
[358932266,1745554242219,-200.0,0.00045948,30]
[358932267,1745554242228,-200.0,0.00045948,30]
[358932268,1745554242238,-200.0,0.00045948,30]
[358932269,1745554242248,-200.0,0.00045948,30]
[358932270,1745554242258,-200.0,0.00045948,30]
[358932271,1745554242268,-213.2,0.00045948,30]
[358932272,1745554242278,-420.0,0.00045948,60]
[358932273,1745554242294,-212.0,0.00045948,30]
[358932274,1745554242304,-1071.0,0.00045948,30]
[358932275,1745554242314,-1071.0,0.00045948,30]
[358932276,1745554242323,-1071.0,0.00045948,30]
[358932277,1745554242333,-1071.0,0.00045948,30]
[358932278,1745554242343,-1384.84323815,0.00045948,120]
[358932279,1745554242352,-1154.19209426,0.00045948,120]
[358932280,1745554242362,-7503.12,0.00045948,30]
[358932281,1745554242371,-357.0,0.00045959,90]
[358932282,1745554242382,-16098.34,0.00045999,2]
[358932283,1745554242392,-200.0,0.00046,79]
[358932284,1745554242402,-230.04,0.00046,30]
[358932285,1745554242411,-1000.0,0.00046,120]
[358932286,1745554242421,-1384.84323815,0.00046,120]
[358932287,1745554242431,-1154.19209426,0.00046,120]
[358932288,1745554242440,-226.2333,0.00046088,30]
[358932289,1745554242450,-500.0,0.00046139,7]
[358932290,1745554242460,-278.55850191,0.00046175,15]
[358932291,1745554242470,-204.25,0.00046196,2]
[358932292,1745554242480,-357.0,0.00046233,90]
[358932293,1745554242490,-226.2333,0.00046288,30]
[358932294,1745554242500,-495.72091637,0.00046413,7]
[358932295,1745554242509,-200.55924713,0.00046471,19]
[358932296,1745554242519,-226.2333,0.00046488,30]
[358932297,1745554242529,-357.0,0.00046507,90]
[358932298,1745554242538,-532.8976858,0.00046513,30]
[358932299,1745554242549,-152.0,0.00046619,10]
[358932300,1745554242559,-226.2333,0.00046688,30]
[358932301,1745554242569,-1011.066,0.00046708,10]
[358932302,1745554242579,-1071.0,0.00046731,30]
[358932303,1745554242589,-5000.0,0.00046759,120]
[358932304,1745554242600,-24098.1939772,0.0004679,3]
[358932305,1745554242611,-17437.4099769,0.0004679,3]
[358932306,1745554242625,-1000.0,0.00046795,2]
[358932307,1745554242635,-1828.0,0.000468,7]
[358932308,1745554242645,-1828.0,0.000468,7]
[358932309,1745554242655,-1828.0,0.000468,7]
[358932310,1745554242666,-1828.0,0.000468,7]
[358932311,1745554242676,-1828.0,0.000468,7]
[358932312,1745554242687,-1828.0,0.000468,7]
[358932313,1745554242699,-1828.0,0.000468,7]
[358932314,1745554242709,-1828.0,0.000468,7]